Workbook

Sheet Sheet1
A1: 7 Stewart | H1: 2025
B2: General NNN Expenses | D2: 2024 | E2: psf | F2: 2025 YTD10/31 | G2: psf | H2: Pro-Forma | I2: psf
B3: SF
B4: 14400
B5: Insurance
C6: Landlord Cover's w have GL* | D6: N/A | F6: N/A | H6: N/A
B7: Taxes
C8: Real Estate Taxes | D8: 11728.67 | E8: =D8/$B$4 -> 0.8144909722 | F8: 9144.75 | G8: =F8/$B$4 -> 0.6350520833 | H8: =2950.93*4 -> 11803.72 | I8: =H8/$B$4 -> 0.8197027778
B10: Utilities
C11: Electricity | D11: 23877.69 | E11: =D11/$B$4 -> 1.658172917 | F11: 19474.7 | G11: =F11/$B$4 -> 1.352409722 | H11: =+(F11/10)*12 -> 23369.64 | I11: =H11/$B$4 -> 1.622891667 | J11: Note: Tenant is 911 service provider open 24/7/365. And ambulances require daily charging when not in use.
C12: Gas - Propane | D12: 10996.19 | E12: =D12/$B$4 -> 0.7636243056 | F12: 3565 | G12: =F12/$B$4 -> 0.2475694444 | H12: 4278 | I12: =H12/$B$4 -> 0.2970833333 | J12: New heating and HVAC systems install in 2024.
C13: Water | D13: 1522.46 | E13: =D13/$B$4 -> 0.1057263889 | F13: 1156.84 | G13: =F13/$B$4 -> 0.08033611111 | H13: 1388.208 | I13: =H13/$B$4 -> 0.09640333333
C14: Subtotal | D14: =SUM(D11:D13) -> 36396.34 | E14: =D14/$B$4 -> 2.527523611 | F14: =SUM(F11:F13) -> 24196.54 | G14: =F14/$B$4 -> 1.680315278 | H14: =SUM(H11:H13) -> 29035.848 | I14: =H14/$B$4 -> 2.016378333
C15: Total | D15: =D14+D8 -> 48125.01 | E15: =D15/$B$4 -> 3.342014583 | F15: =F14+F8 -> 33341.29 | G15: =F15/$B$4 -> 2.315367361 | H15: =H14+H8 -> 40839.568 | I15: =H15/$B$4 -> 2.836081111
B17: Other Operating Expenses
C18: Dumpster | D18: 4070.2 | E18: =D18/$B$4 -> 0.2826527778 | F18: 3829.7 | G18: =F18/$B$4 -> 0.2659513889 | H18: =+(F18/10)*12 -> 4595.64 | I18: =H18/$B$4 -> 0.3191416667
C19: Cleaning | D19: 5720 | E19: =D19/$B$4 -> 0.3972222222 | F19: 4840 | G19: =F19/$B$4 -> 0.3361111111 | H19: 5808 | I19: =H19/$B$4 -> 0.4033333333
C20: Building Repair & Maintenace | D20: 8696.43 | E20: =D20/$B$4 -> 0.60391875 | F20: 1367.21 | G20: =F20/$B$4 -> 0.09494513889 | H20: 1640.652 | I20: =H20/$B$4 -> 0.1139341667 | J20: 2024-$4400-HVAC repair/upgrade to new system, $2,642 bathroom repairs/replacement $1,500 garage door repair, misc
C21: Pest Control | D21: 1140 | E21: =D21/$B$4 -> 0.07916666667 | F21: 630 | G21: =F21/$B$4 -> 0.04375 | H21: 756 | I21: =H21/$B$4 -> 0.0525
C22: Other Subtotal | D22: =SUM(D18:D21) -> 19626.63 | E22: =D22/$B$4 -> 1.362960417 | F22: =SUM(F18:F21) -> 10666.91 | G22: =F22/$B$4 -> 0.7407576389 | H22: =SUM(H18:H21) -> 12800.292 | I22: =H22/$B$4 -> 0.8889091667
C23: Total NNN Expense | D23: =D22+D15 -> 67751.64 | E23: =D23/$B$4 -> 4.704975 | F23: =F22+F15 -> 44008.2 | G23: =F23/$B$4 -> 3.056125 | H23: =H22+H15 -> 53639.86 | I23: =H23/$B$4 -> 3.724990278
B25: * GL is all company wide for rented property so, not broken out by location.
